[Event "Titled Tuesday Blitz June 22 2021"]
[White "Vignesh, N R"]
[Black "Rojas Alarcon, Julian Antonio"]
[WhiteFideId "25012215"]
[BlackFideId "5107407"]
[WhiteElo "2401"]
[BlackElo "2333"]
[Result "1-0"]
[Round "04"]
[TimeControl "180+1"]
[Date "2021.06.22"]
[WhiteClock "0:00:13"]
[BlackClock "0:00:02"]

1. d4 {[%clk 0:03:00]}  Nf6 {[%clk 0:02:57]} 2. Nf3 {[%clk 0:03:00]}  e6 {[%clk 0:02:50]} 3. e3 {[%clk 0:03:01]}  b6 {[%clk 0:02:48]} 4. Bd3 {[%clk 0:03:01]}  Bb7 {[%clk 0:02:48]} 5. O-O {[%clk 0:03:00]}  d6 {[%clk 0:02:43]} 6. Qe2 {[%clk 0:03:00]}  Nbd7 {[%clk 0:02:43]} 7. e4 {[%clk 0:02:59]}  e5 {[%clk 0:02:44]} 8. a4 {[%clk 0:02:55]}  a5 {[%clk 0:02:41]} 9. b3 {[%clk 0:02:50]}  Be7 {[%clk 0:02:12]} 10. Bb2 {[%clk 0:02:42]}  exd4 {[%clk 0:02:10]} 11. Nxd4 {[%clk 0:02:43]}  O-O {[%clk 0:02:11]} 12. Nf5 {[%clk 0:02:35]}  Re8 {[%clk 0:02:01]} 13. Nxe7+ {[%clk 0:02:19]}  Rxe7 {[%clk 0:02:02]} 14. Nd2 {[%clk 0:02:15]}  Qf8 {[%clk 0:01:52]} 15. f3 {[%clk 0:02:04]}  Rae8 {[%clk 0:01:46]} 16. Qf2 {[%clk 0:02:03]}  d5 {[%clk 0:01:45]} 17. exd5 {[%clk 0:01:58]}  Nxd5 {[%clk 0:01:36]} 18. Ba3 {[%clk 0:01:52]}  c5 {[%clk 0:01:33]} 19. Nc4 {[%clk 0:01:31]}  Nf4 {[%clk 0:01:26]} 20. Bxh7+ {[%clk 0:01:30]}  Kxh7 {[%clk 0:01:21]} 21. Qh4+ {[%clk 0:01:30]}  Kg8 {[%clk 0:01:22]} 22. Qxf4 {[%clk 0:01:30]}  Re6 {[%clk 0:01:23]} 23. Qc7 {[%clk 0:01:23]}  Bc6 {[%clk 0:01:18]} 24. Nxb6 {[%clk 0:01:12]}  Nxb6 {[%clk 0:01:12]} 25. Qxb6 {[%clk 0:01:11]}  Bxf3 {[%clk 0:01:13]} 26. Qxc5 {[%clk 0:00:55]}  Qxc5+ {[%clk 0:01:12]} 27. Bxc5 {[%clk 0:00:56]}  Be4 {[%clk 0:01:10]} 28. c3 {[%clk 0:00:51]}  Rg6 {[%clk 0:00:56]} 29. Rf2 {[%clk 0:00:48]}  Bd5 {[%clk 0:00:52]} 30. b4 {[%clk 0:00:47]}  Rc8 {[%clk 0:00:41]} 31. h3 {[%clk 0:00:44]}  Rg3 {[%clk 0:00:38]} 32. Rc1 {[%clk 0:00:40]}  Bb3 {[%clk 0:00:34]} 33. Kh2 {[%clk 0:00:39]}  Rd3 {[%clk 0:00:33]} 34. Rf3 {[%clk 0:00:33]}  Rxf3 {[%clk 0:00:32]} 35. gxf3 {[%clk 0:00:33]}  axb4 {[%clk 0:00:31]} 36. cxb4 {[%clk 0:00:29]}  Bxa4 {[%clk 0:00:32]} 37. h4 {[%clk 0:00:28]}  Bc6 {[%clk 0:00:28]} 38. Kg3 {[%clk 0:00:28]}  Ra8 {[%clk 0:00:29]} 39. Rc3 {[%clk 0:00:28]}  Ra2 {[%clk 0:00:26]} 40. h5 {[%clk 0:00:27]}  Rb2 {[%clk 0:00:24]} 41. Bd4 {[%clk 0:00:26]}  Rxb4 {[%clk 0:00:17]} 42. Bxg7 {[%clk 0:00:26]}  Kxg7 {[%clk 0:00:17]} 43. Rxc6 {[%clk 0:00:26]}  Ra4 {[%clk 0:00:16]} 44. f4 {[%clk 0:00:24]}  Ra1 {[%clk 0:00:15]} 45. Kg4 {[%clk 0:00:25]}  Rg1+ {[%clk 0:00:15]} 46. Kf5 {[%clk 0:00:25]}  Rh1 {[%clk 0:00:16]} 47. h6+ {[%clk 0:00:25]}  Kg8 {[%clk 0:00:12]} 48. Rc8+ {[%clk 0:00:21]}  Kh7 {[%clk 0:00:11]} 49. Kf6 {[%clk 0:00:19]}  Rxh6+ {[%clk 0:00:10]} 50. Kxf7 {[%clk 0:00:19]}  Rh5 {[%clk 0:00:08]} 51. Kf6 {[%clk 0:00:18]}  Ra5 {[%clk 0:00:07]} 52. Re8 {[%clk 0:00:16]}  Ra6+ {[%clk 0:00:06]} 53. Re6 {[%clk 0:00:16]}  Ra5 {[%clk 0:00:06]} 54. f5 {[%clk 0:00:16]}  Kg8 {[%clk 0:00:06]} 55. Re8+ {[%clk 0:00:16]}  Kh7 {[%clk 0:00:06]} 56. Ke6 {[%clk 0:00:16]}  Ra1 {[%clk 0:00:04]} 57. f6 {[%clk 0:00:16]}  Re1+ {[%clk 0:00:03]} 58. Kf7 {[%clk 0:00:16]}  Ra1 {[%clk 0:00:03]} 59. Kf8 {[%clk 0:00:15]}  Kg6 {[%clk 0:00:03]} 60. f7 {[%clk 0:00:14]}  Ra6 {[%clk 0:00:02]} 61. Kg8 {[%clk 0:00:13]} 1-0


[Site "https://www.chess.com"]

[Event "Titled Tuesday Blitz June 22 2021"]
[White "Ahmadzada, Ahmad"]
[Black "Tari, Aryan"]
[WhiteFideId "13413007"]
[BlackFideId "1510045"]
[WhiteElo "2226"]
[BlackElo "2656"]
[Result "0-1"]
[Round "05"]
[TimeControl "180+1"]
[Date "2021.06.22"]
[WhiteClock "0:00:25"]
[BlackClock "0:02:13"]

1. e4 {[%clk 0:03:00]}  c5 {[%clk 0:02:56]} 2. Nf3 {[%clk 0:03:00]}  Nc6 {[%clk 0:02:57]} 3. Nc3 {[%clk 0:02:59]}  e5 {[%clk 0:02:46]} 4. Bc4 {[%clk 0:02:57]}  Be7 {[%clk 0:02:46]} 5. d3 {[%clk 0:02:57]}  Nf6 {[%clk 0:02:43]} 6. Nd2 {[%clk 0:02:58]}  d6 {[%clk 0:02:40]} 7. Nf1 {[%clk 0:02:58]}  Be6 {[%clk 0:02:41]} 8. Ne3 {[%clk 0:02:58]}  Nd7 {[%clk 0:02:42]} 9. Ned5 {[%clk 0:02:56]}  O-O {[%clk 0:02:40]} 10. O-O {[%clk 0:02:55]}  a6 {[%clk 0:02:34]} 11. a4 {[%clk 0:02:53]}  Rc8 {[%clk 0:02:31]} 12. f4 {[%clk 0:02:48]}  exf4 {[%clk 0:02:30]} 13. Bxf4 {[%clk 0:02:48]}  Nde5 {[%clk 0:02:27]} 14. Ba2 {[%clk 0:02:42]}  Bg5 {[%clk 0:02:24]} 15. Bg3 {[%clk 0:02:28]}  Nd4 {[%clk 0:02:18]} 16. Kh1 {[%clk 0:01:47]}  b5 {[%clk 0:02:16]} 17. axb5 {[%clk 0:01:41]}  axb5 {[%clk 0:02:17]} 18. Nb1 {[%clk 0:01:27]}  Bg4 {[%clk 0:02:16]} 19. Qe1 {[%clk 0:00:37]}  Nxc2 {[%clk 0:02:14]} 20. Qf2 {[%clk 0:00:37]}  Nxa1 {[%clk 0:02:14]} 21. Bxe5 {[%clk 0:00:27]}  dxe5 {[%clk 0:02:15]} 22. Nbc3 {[%clk 0:00:25]}  b4 {[%clk 0:02:13]} 0-1


[Site "https://www.chess.com"]

[Event "Titled Tuesday Blitz June 22 2021"]
[White "Alavi, Sayed Javad"]
[Black "Zhigalko, Sergei"]
[WhiteFideId "12500607"]
[BlackFideId "13502956"]
[WhiteElo "2495"]
[BlackElo "2662"]
[Result "0-1"]
[Round "05"]
[TimeControl "180+1"]
[Date "2021.06.22"]
[WhiteClock "0:00:46"]
[BlackClock "0:00:20"]

1. Nf3 {[%clk 0:03:00]}  d5 {[%clk 0:02:59]} 2. d4 {[%clk 0:03:00]}  e6 {[%clk 0:02:59]} 3. c4 {[%clk 0:02:59]}  c6 {[%clk 0:02:59]} 4. e3 {[%clk 0:02:58]}  Bd6 {[%clk 0:02:57]} 5. Bd3 {[%clk 0:02:52]}  f5 {[%clk 0:02:55]} 6. O-O {[%clk 0:02:37]}  Nf6 {[%clk 0:02:55]} 7. b3 {[%clk 0:02:38]}  Qe7 {[%clk 0:02:55]} 8. Nbd2 {[%clk 0:02:34]}  O-O {[%clk 0:02:53]} 9. Ne5 {[%clk 0:02:32]}  b6 {[%clk 0:02:47]} 10. Ndf3 {[%clk 0:02:29]}  Bb7 {[%clk 0:02:46]} 11. Bb2 {[%clk 0:02:28]}  Ne4 {[%clk 0:02:39]} 12. cxd5 {[%clk 0:02:22]}  exd5 {[%clk 0:02:35]} 13. Rc1 {[%clk 0:02:17]}  c5 {[%clk 0:02:25]} 14. Be2 {[%clk 0:02:04]}  Nd7 {[%clk 0:02:05]} 15. Nxd7 {[%clk 0:02:04]}  Qxd7 {[%clk 0:02:06]} 16. Ne5 {[%clk 0:02:04]}  Qe7 {[%clk 0:02:05]} 17. f4 {[%clk 0:02:00]}  Rac8 {[%clk 0:02:01]} 18. Rc2 {[%clk 0:01:57]}  Rc7 {[%clk 0:01:44]} 19. Bd3 {[%clk 0:01:42]}  Rfc8 {[%clk 0:01:38]} 20. Qe2 {[%clk 0:01:39]}  Qe6 {[%clk 0:01:27]} 21. Rfc1 {[%clk 0:01:29]}  h6 {[%clk 0:01:18]} 22. Bxe4 {[%clk 0:01:18]}  fxe4 {[%clk 0:01:06]} 23. Rd1 {[%clk 0:01:12]}  a5 {[%clk 0:00:33]} 24. a4 {[%clk 0:00:51]}  Bxe5 {[%clk 0:00:27]} 25. fxe5 {[%clk 0:00:46]}  c4 {[%clk 0:00:20]} 0-1


[Site "https://www.chess.com"]

[Event "Titled Tuesday Blitz June 22 2021"]
[White "Berezin, Viktor"]
[Black "Ozen, Bahadir"]
[WhiteFideId "14107872"]
[BlackFideId "6337058"]
[WhiteElo "2310"]
[BlackElo "2503"]
[Result "0-1"]
[Round "05"]
[TimeControl "180+1"]
[Date "2021.06.22"]
[WhiteClock "0:00:17"]
[BlackClock "0:01:01"]

1. d4 {[%clk 0:02:58]}  c6 {[%clk 0:03:00]} 2. e4 {[%clk 0:02:56]}  d5 {[%clk 0:03:00]} 3. exd5 {[%clk 0:02:54]}  cxd5 {[%clk 0:03:01]} 4. c4 {[%clk 0:02:53]}  Nf6 {[%clk 0:03:01]} 5. Nc3 {[%clk 0:02:53]}  Nc6 {[%clk 0:03:01]} 6. Nf3 {[%clk 0:02:53]}  Bg4 {[%clk 0:03:01]} 7. cxd5 {[%clk 0:02:51]}  Nxd5 {[%clk 0:03:02]} 8. Qb3 {[%clk 0:02:48]}  Bxf3 {[%clk 0:03:00]} 9. gxf3 {[%clk 0:02:46]}  e6 {[%clk 0:02:59]} 10. Be3 {[%clk 0:02:35]}  Bb4 {[%clk 0:02:17]} 11. O-O-O {[%clk 0:02:25]}  Rc8 {[%clk 0:02:08]} 12. Kb1 {[%clk 0:02:22]}  O-O {[%clk 0:01:51]} 13. Nxd5 {[%clk 0:02:16]}  Qxd5 {[%clk 0:01:51]} 14. Qxd5 {[%clk 0:02:12]}  exd5 {[%clk 0:01:52]} 15. a3 {[%clk 0:02:13]}  Bd6 {[%clk 0:01:51]} 16. Rc1 {[%clk 0:02:03]}  Ne7 {[%clk 0:01:46]} 17. Bd3 {[%clk 0:02:02]}  Rxc1+ {[%clk 0:01:36]} 18. Kxc1 {[%clk 0:01:59]}  Rc8+ {[%clk 0:01:37]} 19. Kd2 {[%clk 0:01:58]}  f5 {[%clk 0:01:35]} 20. Bg5 {[%clk 0:01:56]}  g6 {[%clk 0:01:35]} 21. h4 {[%clk 0:01:46]}  Nc6 {[%clk 0:01:30]} 22. Rc1 {[%clk 0:01:15]}  Rc7 {[%clk 0:01:30]} 23. Ke3 {[%clk 0:01:01]}  Kg7 {[%clk 0:01:13]} 24. h5 {[%clk 0:00:52]}  h6 {[%clk 0:01:12]} 25. Bh4 {[%clk 0:00:26]}  g5 {[%clk 0:01:10]} 26. Rg1 {[%clk 0:00:19]}  Bf4+ {[%clk 0:01:00]} 27. Ke2 {[%clk 0:00:17]}  Nxd4+ {[%clk 0:01:01]} 0-1


[Site "https://www.chess.com"]

[Event "Titled Tuesday Blitz June 22 2021"]
[White "Blit, Jacques"]
[Black "Holt, Conrad"]
[WhiteFideId "114839"]
[BlackFideId "2034387"]
[WhiteElo "2390"]
[BlackElo "2586"]
[Result "0-1"]
[Round "05"]
[TimeControl "180+1"]
[Date "2021.06.22"]
[WhiteClock "0:00:01"]
[BlackClock "0:00:02"]

1. e4 {[%clk 0:02:57]}  e6 {[%clk 0:02:59]} 2. d4 {[%clk 0:02:57]}  d5 {[%clk 0:02:59]} 3. exd5 {[%clk 0:02:58]}  exd5 {[%clk 0:02:59]} 4. Qf3 {[%clk 0:02:58]}  c5 {[%clk 0:02:57]} 5. Bb5+ {[%clk 0:02:57]}  Nc6 {[%clk 0:02:56]} 6. Ne2 {[%clk 0:02:57]}  Nf6 {[%clk 0:02:55]} 7. h3 {[%clk 0:02:52]}  Be7 {[%clk 0:02:46]} 8. O-O {[%clk 0:02:52]}  O-O {[%clk 0:02:39]} 9. dxc5 {[%clk 0:02:44]}  Bxc5 {[%clk 0:02:39]} 10. Bg5 {[%clk 0:02:42]}  Ne5 {[%clk 0:02:36]} 11. Qf4 {[%clk 0:02:21]}  Ng6 {[%clk 0:02:33]} 12. Qf3 {[%clk 0:01:50]}  Be7 {[%clk 0:01:45]} 13. Nbc3 {[%clk 0:01:41]}  Be6 {[%clk 0:01:33]} 14. Nd4 {[%clk 0:01:23]}  h6 {[%clk 0:00:42]} 15. Bxf6 {[%clk 0:01:06]}  Bxf6 {[%clk 0:00:42]} 16. Nxe6 {[%clk 0:01:06]}  fxe6 {[%clk 0:00:42]} 17. Qg4 {[%clk 0:01:06]}  Kf7 {[%clk 0:00:28]} 18. Rfe1 {[%clk 0:00:51]}  Qd6 {[%clk 0:00:20]} 19. Rad1 {[%clk 0:00:21]}  Ne5 {[%clk 0:00:08]} 20. Qh5+ {[%clk 0:00:19]}  Kg8 {[%clk 0:00:08]} 21. Ne4 {[%clk 0:00:13]}  Qb6 {[%clk 0:00:08]} 22. Nxf6+ {[%clk 0:00:11]}  Rxf6 {[%clk 0:00:09]} 23. Rxe5 {[%clk 0:00:06]}  Qxb5 {[%clk 0:00:07]} 24. Rde1 {[%clk 0:00:06]}  Qd7 {[%clk 0:00:05]} 25. f4 {[%clk 0:00:04]}  Raf8 {[%clk 0:00:04]} 26. g3 {[%clk 0:00:04]}  Qc6 {[%clk 0:00:03]} 27. c3 {[%clk 0:00:04]}  Qb6+ {[%clk 0:00:03]} 28. Kg2 {[%clk 0:00:02]}  Qxb2+ {[%clk 0:00:04]} 29. R1e2 {[%clk 0:00:02]}  Qxc3 {[%clk 0:00:04]} 30. Rxe6 {[%clk 0:00:03]}  Rxe6 {[%clk 0:00:04]} 31. Rxe6 {[%clk 0:00:04]}  Qc2+ {[%clk 0:00:04]} 32. Re2 {[%clk 0:00:04]}  Qf5 {[%clk 0:00:05]} 33. Qf3 {[%clk 0:00:03]}  d4 {[%clk 0:00:05]} 34. Qxb7 {[%clk 0:00:01]}  d3 {[%clk 0:00:05]} 35. Re7 {[%clk 0:00:02]}  Qf6 {[%clk 0:00:04]} 36. Rd7 {[%clk 0:00:01]}  Qc3 {[%clk 0:00:02]} 0-1


[Site "https://www.chess.com"]

[Event "Titled Tuesday Blitz June 22 2021"]
[White "Bluebaum, Matthias"]
[Black "Gritsenko, Nikolai"]
[WhiteFideId "24651516"]
[BlackFideId "14112493"]
[WhiteElo "2685"]
[BlackElo "2389"]
[Result "1-0"]
[Round "05"]
[TimeControl "180+1"]
[Date "2021.06.22"]
[WhiteClock "0:00:38"]
[BlackClock "0:00:15"]

1. d4 {[%clk 0:03:00]}  d5 {[%clk 0:02:59]} 2. c4 {[%clk 0:03:01]}  Nc6 {[%clk 0:03:00]} 3. Nc3 {[%clk 0:03:01]}  e6 {[%clk 0:02:58]} 4. Nf3 {[%clk 0:02:57]}  Nf6 {[%clk 0:02:58]} 5. Bg5 {[%clk 0:02:53]}  Bb4 {[%clk 0:02:56]} 6. e3 {[%clk 0:02:53]}  h6 {[%clk 0:02:55]} 7. Bxf6 {[%clk 0:02:52]}  Qxf6 {[%clk 0:02:55]} 8. Rc1 {[%clk 0:02:51]}  dxc4 {[%clk 0:02:50]} 9. Bxc4 {[%clk 0:02:50]}  O-O {[%clk 0:02:49]} 10. O-O {[%clk 0:02:49]}  a6 {[%clk 0:02:48]} 11. a3 {[%clk 0:02:48]}  Bd6 {[%clk 0:02:46]} 12. h3 {[%clk 0:02:30]}  Rd8 {[%clk 0:02:38]} 13. Qc2 {[%clk 0:02:28]}  e5 {[%clk 0:02:01]} 14. Nd5 {[%clk 0:02:28]}  Qf5 {[%clk 0:02:00]} 15. Qxf5 {[%clk 0:02:27]}  Bxf5 {[%clk 0:01:59]} 16. dxe5 {[%clk 0:02:28]}  Bf8 {[%clk 0:01:47]} 17. Nxc7 {[%clk 0:02:20]}  Rac8 {[%clk 0:01:46]} 18. Nd5 {[%clk 0:02:21]}  b5 {[%clk 0:01:41]} 19. Ba2 {[%clk 0:02:19]}  Be6 {[%clk 0:01:40]} 20. e4 {[%clk 0:02:00]}  Na5 {[%clk 0:01:09]} 21. Nd4 {[%clk 0:01:56]}  Nc4 {[%clk 0:01:05]} 22. Bxc4 {[%clk 0:01:43]}  Rxc4 {[%clk 0:01:03]} 23. Rxc4 {[%clk 0:01:38]}  bxc4 {[%clk 0:01:02]} 24. Nc6 {[%clk 0:01:02]}  Rd7 {[%clk 0:00:53]} 25. Rd1 {[%clk 0:01:01]}  Rb7 {[%clk 0:00:48]} 26. Rd2 {[%clk 0:00:57]}  Kh7 {[%clk 0:00:30]} 27. Rc2 {[%clk 0:00:53]}  Rb5 {[%clk 0:00:25]} 28. Nd4 {[%clk 0:00:40]}  Rc5 {[%clk 0:00:25]} 29. Ne3 {[%clk 0:00:40]}  Rxe5 {[%clk 0:00:21]} 30. Nxe6 {[%clk 0:00:40]}  Rxe6 {[%clk 0:00:18]} 31. Rxc4 {[%clk 0:00:41]}  a5 {[%clk 0:00:17]} 32. b4 {[%clk 0:00:38]}  axb4 {[%clk 0:00:16]} 33. axb4 {[%clk 0:00:39]}  g6 {[%clk 0:00:15]} 34. Nd5 {[%clk 0:00:38]} 1-0


[Site "https://www.chess.com"]

[Event "Titled Tuesday Blitz June 22 2021"]
[White "Demchenko, Anton"]
[Black "Nakamura, Hikaru"]
[WhiteFideId "4160258"]
[BlackFideId "2016192"]
[WhiteElo "2593"]
[BlackElo "2900"]
[Result "1/2-1/2"]
[Round "05"]
[TimeControl "180+1"]
[Date "2021.06.22"]
[WhiteClock "0:00:06"]
[BlackClock "0:00:17"]

1. e4 {[%clk 0:03:00]}  e5 {[%clk 0:02:58]} 2. Nf3 {[%clk 0:03:01]}  Nc6 {[%clk 0:02:59]} 3. Bc4 {[%clk 0:03:02]}  Bc5 {[%clk 0:02:58]} 4. d3 {[%clk 0:03:02]}  Nf6 {[%clk 0:02:58]} 5. Bg5 {[%clk 0:03:03]}  h6 {[%clk 0:02:58]} 6. Bh4 {[%clk 0:03:03]}  Be7 {[%clk 0:02:59]} 7. Bg3 {[%clk 0:03:02]}  d6 {[%clk 0:02:59]} 8. a4 {[%clk 0:03:03]}  Be6 {[%clk 0:02:58]} 9. Bxe6 {[%clk 0:03:02]}  fxe6 {[%clk 0:02:59]} 10. c3 {[%clk 0:03:03]}  O-O {[%clk 0:02:57]} 11. O-O {[%clk 0:03:03]}  Qe8 {[%clk 0:02:52]} 12. Nbd2 {[%clk 0:02:54]}  Nh5 {[%clk 0:02:50]} 13. b4 {[%clk 0:02:45]}  Bf6 {[%clk 0:02:35]} 14. b5 {[%clk 0:02:36]}  Ne7 {[%clk 0:02:34]} 15. d4 {[%clk 0:02:32]}  exd4 {[%clk 0:02:34]} 16. cxd4 {[%clk 0:02:32]}  Ng6 {[%clk 0:02:32]} 17. Rc1 {[%clk 0:02:31]}  Qf7 {[%clk 0:02:27]} 18. Re1 {[%clk 0:02:15]}  Nxg3 {[%clk 0:02:18]} 19. hxg3 {[%clk 0:02:15]}  Bxd4 {[%clk 0:02:17]} 20. Nb3 {[%clk 0:01:46]}  Bf6 {[%clk 0:02:11]} 21. Qc2 {[%clk 0:01:45]}  Rac8 {[%clk 0:02:11]} 22. Na5 {[%clk 0:01:45]}  Rb8 {[%clk 0:02:05]} 23. Re2 {[%clk 0:01:17]}  Bd8 {[%clk 0:01:59]} 24. Nc4 {[%clk 0:01:14]}  Be7 {[%clk 0:01:36]} 25. Qb3 {[%clk 0:01:01]}  a6 {[%clk 0:01:27]} 26. Rd2 {[%clk 0:00:45]}  axb5 {[%clk 0:01:27]} 27. axb5 {[%clk 0:00:43]}  Rfd8 {[%clk 0:01:22]} 28. Ne3 {[%clk 0:00:32]}  Bf8 {[%clk 0:01:19]} 29. Rdc2 {[%clk 0:00:32]}  Rd7 {[%clk 0:01:19]} 30. Qa4 {[%clk 0:00:31]}  b6 {[%clk 0:00:41]} 31. Rc6 {[%clk 0:00:30]}  Re8 {[%clk 0:00:37]} 32. Qc2 {[%clk 0:00:29]}  Ree7 {[%clk 0:00:37]} 33. Nc4 {[%clk 0:00:23]}  Qe8 {[%clk 0:00:35]} 34. Qa2 {[%clk 0:00:21]}  Kh8 {[%clk 0:00:33]} 35. Qa7 {[%clk 0:00:14]}  Rd8 {[%clk 0:00:31]} 36. Rxc7 {[%clk 0:00:12]}  Rxc7 {[%clk 0:00:31]} 37. Qxc7 {[%clk 0:00:13]}  Rc8 {[%clk 0:00:31]} 38. Qxb6 {[%clk 0:00:13]}  Rb8 {[%clk 0:00:25]} 39. Qd4 {[%clk 0:00:12]}  e5 {[%clk 0:00:21]} 40. Qd2 {[%clk 0:00:09]}  Qxb5 {[%clk 0:00:21]} 41. Nxd6 {[%clk 0:00:08]}  Qd7 {[%clk 0:00:21]} 42. Nf5 {[%clk 0:00:08]}  Qxd2 {[%clk 0:00:20]} 43. Nxd2 {[%clk 0:00:09]}  Kg8 {[%clk 0:00:19]} 44. Nf3 {[%clk 0:00:09]}  Rb7 {[%clk 0:00:18]} 45. Rc8 {[%clk 0:00:08]}  Kf7 {[%clk 0:00:19]} 46. Ne3 {[%clk 0:00:06]}  Be7 {[%clk 0:00:18]} 47. Nc4 {[%clk 0:00:05]}  Rb1+ {[%clk 0:00:19]} 48. Kh2 {[%clk 0:00:05]}  Bf6 {[%clk 0:00:20]} 49. Nd6+ {[%clk 0:00:06]}  Ke6 {[%clk 0:00:20]} 50. Nf5 {[%clk 0:00:06]}  Rb2 {[%clk 0:00:19]} 51. Kg1 {[%clk 0:00:05]}  Rb1+ {[%clk 0:00:20]} 52. Kh2 {[%clk 0:00:05]}  Rb2 {[%clk 0:00:21]} 53. Kg1 {[%clk 0:00:06]}  Rb1+ {[%clk 0:00:17]} 54. Kh2 {[%clk 0:00:06]} 1/2-1/2


[Site "https://www.chess.com"]

[Event "Titled Tuesday Blitz June 22 2021"]
[White "Ezat, Mohamed"]
[Black "Leiva, Gianmarco"]
[WhiteFideId "10600906"]
[BlackFideId "3804399"]
[WhiteElo "2414"]
[BlackElo "2365"]
[Result "1-0"]
[Round "05"]
[TimeControl "180+1"]
[Date "2021.06.22"]
[WhiteClock "0:01:27"]
[BlackClock "0:00:09"]

1. d4 {[%clk 0:03:00]}  Nf6 {[%clk 0:02:56]} 2. c4 {[%clk 0:03:00]}  e6 {[%clk 0:02:56]} 3. Nc3 {[%clk 0:02:58]}  Bb4 {[%clk 0:02:51]} 4. e3 {[%clk 0:02:52]}  O-O {[%clk 0:02:48]} 5. a3 {[%clk 0:02:51]}  Bxc3+ {[%clk 0:02:46]} 6. bxc3 {[%clk 0:02:51]}  d6 {[%clk 0:02:45]} 7. Bd3 {[%clk 0:02:51]}  e5 {[%clk 0:02:44]} 8. f3 {[%clk 0:02:51]}  e4 {[%clk 0:02:40]} 9. Bb1 {[%clk 0:02:48]}  Re8 {[%clk 0:02:30]} 10. Ra2 {[%clk 0:02:47]}  Nc6 {[%clk 0:02:26]} 11. Rf2 {[%clk 0:02:45]}  Na5 {[%clk 0:02:25]} 12. Ba2 {[%clk 0:02:42]}  c5 {[%clk 0:02:11]} 13. Ne2 {[%clk 0:02:37]}  b6 {[%clk 0:01:54]} 14. O-O {[%clk 0:02:34]}  Ba6 {[%clk 0:01:54]} 15. Ng3 {[%clk 0:02:31]}  d5 {[%clk 0:01:16]} 16. fxe4 {[%clk 0:02:28]}  Nxe4 {[%clk 0:00:57]} 17. Nxe4 {[%clk 0:02:25]}  Rxe4 {[%clk 0:00:57]} 18. Rxf7 {[%clk 0:02:18]}  Re7 {[%clk 0:00:56]} 19. Qh5 {[%clk 0:02:12]}  Kh8 {[%clk 0:00:15]} 20. Bb1 {[%clk 0:01:32]}  Re4 {[%clk 0:00:09]} 21. Bxe4 {[%clk 0:01:27]}  dxe4 {[%clk 0:00:09]} 22. Rxg7 {[%clk 0:01:27]} 1-0


[Site "https://www.chess.com"]

[Event "Titled Tuesday Blitz June 22 2021"]
[White "Firat, Burak"]
[Black "Kanyamarala, Tarun"]
[WhiteFideId "6305881"]
[BlackFideId "45004714"]
[WhiteElo "2531"]
[BlackElo "2086"]
[Result "1-0"]
[Round "05"]
[TimeControl "180+1"]
[Date "2021.06.22"]
[WhiteClock "0:00:18"]
[BlackClock "0:00:01"]

1. e4 {[%clk 0:03:00]}  c5 {[%clk 0:02:59]} 2. Nf3 {[%clk 0:03:00]}  Nc6 {[%clk 0:03:00]} 3. d4 {[%clk 0:02:59]}  cxd4 {[%clk 0:03:01]} 4. Nxd4 {[%clk 0:03:00]}  Nf6 {[%clk 0:03:01]} 5. Nc3 {[%clk 0:02:59]}  e5 {[%clk 0:03:02]} 6. Ndb5 {[%clk 0:02:58]}  d6 {[%clk 0:03:03]} 7. Nd5 {[%clk 0:02:58]}  Nxd5 {[%clk 0:03:01]} 8. exd5 {[%clk 0:02:59]}  Nb8 {[%clk 0:03:01]} 9. h4 {[%clk 0:03:00]}  Be7 {[%clk 0:02:58]} 10. h5 {[%clk 0:02:58]}  h6 {[%clk 0:02:57]} 11. c4 {[%clk 0:02:57]}  a6 {[%clk 0:02:53]} 12. Nc3 {[%clk 0:02:56]}  O-O {[%clk 0:02:50]} 13. Be2 {[%clk 0:02:55]}  Nd7 {[%clk 0:02:44]} 14. Be3 {[%clk 0:02:47]}  Bg5 {[%clk 0:02:43]} 15. Qd2 {[%clk 0:02:45]}  f5 {[%clk 0:02:01]} 16. Bxg5 {[%clk 0:02:29]}  Qxg5 {[%clk 0:02:00]} 17. Qxg5 {[%clk 0:02:28]}  hxg5 {[%clk 0:02:01]} 18. g4 {[%clk 0:02:26]}  Nf6 {[%clk 0:01:51]} 19. gxf5 {[%clk 0:02:22]}  Bxf5 {[%clk 0:01:51]} 20. Nd1 {[%clk 0:01:54]}  b5 {[%clk 0:01:36]} 21. Ne3 {[%clk 0:01:49]}  Bd7 {[%clk 0:01:36]} 22. Rg1 {[%clk 0:01:43]}  bxc4 {[%clk 0:01:12]} 23. Nxc4 {[%clk 0:01:34]}  Nxd5 {[%clk 0:00:56]} 24. Nxd6 {[%clk 0:01:30]}  Rad8 {[%clk 0:00:20]} 25. Rxg5 {[%clk 0:01:17]}  Be6 {[%clk 0:00:15]} 26. Nb7 {[%clk 0:01:17]}  Rc8 {[%clk 0:00:11]} 27. Rxe5 {[%clk 0:01:13]}  Nf4 {[%clk 0:00:08]} 28. Nc5 {[%clk 0:00:52]}  Rf5 {[%clk 0:00:06]} 29. Rxf5 {[%clk 0:00:38]}  Bxf5 {[%clk 0:00:07]} 30. b4 {[%clk 0:00:36]}  Re8 {[%clk 0:00:07]} 31. O-O-O {[%clk 0:00:27]}  Rxe2 {[%clk 0:00:05]} 32. Rd4 {[%clk 0:00:28]}  Re1+ {[%clk 0:00:03]} 33. Kb2 {[%clk 0:00:28]}  Rb1+ {[%clk 0:00:03]} 34. Ka3 {[%clk 0:00:27]}  Ne2 {[%clk 0:00:03]} 35. Rd5 {[%clk 0:00:24]}  Bg4 {[%clk 0:00:01]} 36. Nxa6 {[%clk 0:00:20]}  Kh7 {[%clk 0:00:01]} 37. Nc7 {[%clk 0:00:18]}  Ra1 {[%clk 0:00:02]} 38. Kb2 {[%clk 0:00:18]}  Rxa2+ {[%clk 0:00:02]} 39. Kxa2 {[%clk 0:00:17]}  Nc3+ {[%clk 0:00:02]} 40. Kb3 {[%clk 0:00:18]}  Nxd5 {[%clk 0:00:02]} 41. Nxd5 {[%clk 0:00:19]}  Be6 {[%clk 0:00:02]} 42. Kc4 {[%clk 0:00:20]}  Kh6 {[%clk 0:00:03]} 43. Kc5 {[%clk 0:00:19]}  Bd7 {[%clk 0:00:01]} 44. b5 {[%clk 0:00:18]} 1-0


[Site "https://www.chess.com"]